fUST/lending_fUST_20240411
["ID","MTS","AMOUNT","RATE_DAILY","PERIOD"]
[322136585,1712837438517,-500.0,0.00030958,2]
[322136586,1712837438526,-500.0,0.00031013,2]
[322136587,1712837438535,-160.16123696,0.00031068,2]
[322136588,1712837438545,-587.0,0.00031379,2]
[322136589,1712837438553,-294.2022933,0.00031451,4]
[322136590,1712837438563,-436.91495439,0.00031679,2]
[322136591,1712837438572,-523.1475866,0.00031997,2]
[322136592,1712837438582,-503.53892806,0.00031997,2]
[322136593,1712837438592,-500.0,0.00031997,2]
[322136594,1712837438601,-500.0,0.00031997,2]
[322136595,1712837438611,-500.0,0.00031997,2]
[322136596,1712837438621,-500.0,0.00031997,2]
[322136597,1712837438632,-500.0,0.00031997,2]
[322136598,1712837438643,-503.91428376,0.00031997,2]
[322136599,1712837438654,-500.0,0.00031997,2]
[322136600,1712837438664,-500.0,0.00031997,2]
[322136601,1712837438674,-601.47041115,0.00031997,2]
[322136602,1712837438685,-500.0,0.00031997,2]
[322136603,1712837438694,-500.0,0.00031997,2]
[322136604,1712837438704,-592.68566336,0.00031997,2]
[322136605,1712837438716,-500.0,0.00031997,2]
[322136606,1712837438726,-500.0,0.00031997,2]
[322136607,1712837438735,-500.0,0.00031997,2]
[322136608,1712837438744,-500.0,0.00031997,2]
[322136609,1712837438754,-500.0,0.00031997,2]
[322136610,1712837438764,-500.0,0.00031997,2]
[322136611,1712837438774,-500.0,0.00031997,2]
[322136612,1712837438784,-500.0,0.00031997,2]
[322136613,1712837438794,-500.0,0.00031997,2]
[322136614,1712837438805,-500.0,0.00031997,2]
[322136615,1712837438815,-500.0,0.00031997,2]
[322136617,1712837438825,-500.0,0.00031997,2]
[322136618,1712837438835,-500.0,0.00031997,2]
[322136620,1712837438850,-500.0,0.00031997,2]
[322136622,1712837438860,-3882.69919405,0.00032,5]
[322136624,1712837438870,-190.87429094,0.00032,4]
[322136626,1712837438879,-2000.0,0.00032,2]
[322136636,1712837438978,-1211.2733208,0.00032,2]
[322136638,1712837438987,-2000.0,0.0003201,2]
[322136640,1712837438996,-2000.0,0.0003202,2]
[322136642,1712837439006,-2000.0,0.0003203,2]
[322136643,1712837439015,-3552.350027,0.0003204,2]
[322136645,1712837439024,-1241.14001087,0.00032054,4]
[322136647,1712837439033,-435.8675,0.00032371,30]
[322136649,1712837439042,-158.53182207,0.00032603,2]
[322136651,1712837439051,-2000.0,0.000328,2]
[322136653,1712837439060,-289.557468,0.000328,2]
[322136654,1712837439069,-2000.0,0.0003281,2]
[322136656,1712837439080,-2000.0,0.0003282,2]
[322136658,1712837439094,-2000.0,0.0003283,2]
[322136659,1712837439105,-151.0,0.0003283,2]
[322136660,1712837439115,-151.0,0.0003283,2]
[322136661,1712837439124,-434.953411,0.0003283,2]
[322136662,1712837439135,-434.953411,0.0003283,2]
[322136663,1712837439145,-151.0,0.0003283,2]
[322136664,1712837439154,-526.210556,0.0003283,2]
[322136665,1712837439166,-526.210556,0.0003283,2]
[322136666,1712837439176,-173.049105,0.0003283,2]
[322136667,1712837439185,-173.049105,0.0003283,2]
[322136668,1712837439194,-151.0,0.0003283,2]
[322136669,1712837439203,-2000.0,0.0003284,2]
[322136670,1712837439213,-2000.0,0.0003285,2]
[322136671,1712837439222,-2000.0,0.0003286,2]
[322136672,1712837439231,-2000.0,0.0003287,2]
[322136673,1712837439242,-436.818999,0.00032877,30]
[322136674,1712837439251,-2000.0,0.0003288,2]
[322136675,1712837439260,-2000.0,0.0003289,2]
[322136676,1712837439270,-2000.0,0.000329,2]
[322136677,1712837439279,-151.570489,0.00032908,2]
[322136678,1712837439288,-151.0,0.00032908,2]
[322136679,1712837439297,-151.0,0.00032908,2]
[322136680,1712837439307,-151.0,0.00032908,2]
[322136681,1712837439316,-124.38161348,0.00032908,2]
[322136682,1712837439330,-26.61838652,0.00032908,2]
[322136683,1712837439339,-2000.0,0.0003291,2]
[322136684,1712837439349,-2000.0,0.0003292,2]
[322136685,1712837439359,-2000.0,0.0003293,2]
[322136686,1712837439368,-2000.0,0.0003294,2]
[322136687,1712837439377,-2000.0,0.0003295,2]
[322136688,1712837439387,-173.049105,0.00032957,2]
[322136689,1712837439397,-173.049105,0.00032957,2]
[322136690,1712837439407,-2000.0,0.0003296,2]
[322136691,1712837439417,-180.763782,0.0003296,2]
[322136692,1712837439426,-151.0,0.0003296,2]
[322136693,1712837439435,-434.953411,0.0003296,2]
[322136694,1712837439445,-434.953411,0.0003296,2]
[322136695,1712837439454,-154.018839,0.0003296,2]
[322136696,1712837439463,-526.210556,0.0003296,2]
[322136697,1712837439473,-526.210556,0.0003296,2]
[322136698,1712837439482,-151.0,0.0003296,2]
[322136699,1712837439491,-2000.0,0.0003297,2]
[322136700,1712837439501,-151.0,0.0003297,2]
[322136701,1712837439510,-151.0,0.0003297,2]
[322136702,1712837439520,-40.03426427,0.0003297,2]
[322136703,1712837439532,-249.06044773,0.0003297,2]
[322136704,1712837439541,-164.98822,0.0003297,2]
[322136705,1712837439550,-151.0,0.0003298,2]
[322136706,1712837439559,-151.0,0.0003298,2]
[322136707,1712837439569,-151.0,0.0003298,2]
[322136708,1712837439578,-151.0,0.0003298,2]
[322136709,1712837439587,-503.030084,0.0003298,2]
[322136710,1712837439598,-13.68857397,0.0003298,2]
[322136711,1712837439612,-489.34151003,0.0003298,2]
[322136712,1712837439621,-151.0,0.0003298,2]
[322136713,1712837439631,-151.0,0.0003298,2]
[322136714,1712837439640,-2000.0,0.0003298,2]
[322136715,1712837439650,-2842.325291,0.0003299,2]
[322136717,1712837439659,-233.384835,0.00033165,2]
[322136718,1712837439669,-436.91495439,0.00033597,2]
[322136720,1712837439679,-151.0,0.00033749,2]
[322136722,1712837439689,-151.04886123,0.00033825,2]
[322136724,1712837439698,-27216.51850526,0.00033833,5]
[322136725,1712837439710,-20969.99999999,0.00033833,5]
[322136726,1712837439722,-332.38862277,0.00033833,5]
[322136727,1712837439732,-160.01453605,0.00033833,4]
[322136729,1712837439742,-925.12169132,0.00033833,4]
[322136730,1712837439751,-223.14060032,0.00033833,4]
[322136731,1712837439761,-152.497267,0.00033858,2]
[322136732,1712837439770,-1211.2733208,0.0003392,2]
[322136733,1712837439780,-464.87522551,0.00034,4]
[322136734,1712837439789,-2000.0,0.00034447,2]
[322136735,1712837439799,-823.0,0.00034517,2]
[322136736,1712837439808,-151.0,0.00034547,2]
[322136737,1712837439818,-151.0,0.00034547,2]
[322136738,1712837439827,-151.0,0.00034547,2]
[322136739,1712837439837,-151.0,0.00034547,2]
[322136741,1712837439846,-151.0,0.00034547,2]
[322136743,1712837439857,-503.030084,0.00034547,2]
[322136744,1712837439867,-503.030084,0.00034547,2]
[322136745,1712837439876,-151.0,0.00034547,2]
[322136746,1712837439886,-151.0,0.00034547,2]
[322136747,1712837439895,-151.0,0.00034547,2]
[322136749,1712837439905,-151.0,0.00034547,2]
[322136750,1712837439914,-151.0,0.00034547,2]
[322136751,1712837439923,-434.953411,0.00034547,2]
[322136752,1712837439932,-434.953411,0.00034547,2]
[322136753,1712837439942,-526.210556,0.00034547,2]
[322136754,1712837439952,-526.210556,0.00034547,2]
[322136756,1712837439961,-173.049105,0.00034547,2]
[322136757,1712837439971,-173.049105,0.00034547,2]
[322136759,1712837439981,-151.0,0.00034547,2]
[322136760,1712837439991,-17144.03987221,0.00034548,2]
[322136761,1712837440001,-288.07805995,0.00034784,2]
[322136762,1712837440011,-6365.08449207,0.00035,2]
[322136764,1712837440160,-289.557468,0.000329,2]
[322136765,1712837440171,-166.772532,0.0003298,2]
[322136778,1712837443198,-289.557468,0.000328,2]
[322136779,1712837443208,-289.557468,0.000329,2]
[322136780,1712837443219,-122.784936,0.0003298,2]
[322136781,1712837443228,-289.557468,0.0003298,2]
[322136782,1712837443238,-289.557468,0.00033833,2]
[322136783,1712837443248,-289.557468,0.00033833,2]
[322136784,1712837443257,-200.65201814,0.00034547,2]
[322136861,1712838570334,-154.87609912,0.00025834,2]
[322136862,1712838570359,-154.860625,0.00025834,2]
[322136863,1712838570379,-158.53182207,0.00025835,2]
[322136864,1712838570401,-1062.08270881,0.00025935,4]
[322136901,1712838638387,-150.0,0.00023835,2]
[322136902,1712838638396,-111.683,0.00025935,4]
[322136905,1712838638796,-1097.63828621,0.00025935,4]
[322136907,1712838638809,-515.645089,0.00027397,2]
[322136909,1712838638821,-166.666666,0.0003131,2]
[322136910,1712838638832,-303.42336337,0.00031849,4]
[322136912,1712838638842,-242.74204017,0.00031849,4]
[322136914,1712838638853,-476.99145906,0.00031849,4]
[322136916,1712838638864,-167.74248845,0.00031849,4]
[322136918,1712838638877,-400.0,0.0003185,2]
[322136919,1712838638888,-8363.50259471,0.00031851,2]
[322136920,1712838638902,-494.67894479,0.00031851,2]
[322136921,1712838638918,-16041.8184605,0.00031851,2]
[322136922,1712838638929,-574.82965381,0.000319,5]
[322136923,1712838638941,-1211.2733208,0.00032,2]
[322136924,1712838638952,-1211.15229029,0.00032,2]
[322136925,1712838638963,-166.666666,0.00032163,2]
[322136926,1712838638975,-150.0,0.000328,2]
[322136927,1712838638986,-166.666666,0.00033017,2]
[322136928,1712838638997,-515.645089,0.00033165,2]
[322136929,1712838639008,-9696.15259905,0.00033511,2]
[322136930,1712838639019,-166.666666,0.00033871,2]
[322136931,1712838639030,-1211.2733208,0.0003392,2]
[322136932,1712838639041,-848.01235505,0.0003392,2]
[322136933,1712838639052,-163.07406916,0.00034,4]
[322137089,1712839326226,1177.22260241,0.00020997,2]
[322137095,1712839825884,157.40887124,0.00020997,2]
[322137136,1712839833070,-326.68579302,0.00027395,2]
[322137137,1712839833080,-259.316508,0.00027397,2]
[322137138,1712839833090,-157.565843,0.00027397,2]
[322137140,1712839833099,-710.44802062,0.00032419,4]
[322137162,1712839838455,-2272.18433251,0.00032419,4]
[322137163,1712839838468,-166.666666,0.00032422,2]
[322137164,1712839838479,-176.666619,0.00032709,2]
[322137165,1712839838489,-301.0,0.00033082,3]
[322137166,1712839838500,-400.0,0.00033082,2]
[322137167,1712839838510,-400.0,0.00033082,2]
[322137168,1712839838520,-12627.6998411,0.00033083,2]
[322137169,1712839838529,-166.666666,0.00033306,2]
[322137170,1712839838539,-521.14730999,0.000339,6]
[322137171,1712839838550,-2330.9347153,0.00034,2]
[322137172,1712839838561,-1013.52165303,0.00034,4]
[322137173,1712839838570,-464.87522551,0.00034,4]
[322137174,1712839838580,-166.666666,0.0003419,2]
[322137175,1712839838590,-2211.0547666,0.00035,2]
[322137176,1712839838600,-154.90705577,0.00035,4]
[322137177,1712839838610,-1240.70297861,0.00035,120]
[322137178,1712839838621,-166.666666,0.00035074,2]
[322137179,1712839838633,-11369.33866938,0.00035257,4]
[322137180,1712839838643,-1500.00000001,0.00035516,2]
[322137181,1712839838653,-436.91495439,0.00035516,2]
[322137182,1712839838663,-560.0,0.00035542,2]
[322137183,1712839838673,-194.76533637,0.00035563,7]
[322137184,1712839838686,-3965.29203968,0.00035612,2]
[322137185,1712839838696,-218.80850476,0.00035614,4]
[322137186,1712839838706,-618.03088447,0.00035614,4]
[322137191,1712839838835,-522.1741738,0.00035614,4]
[322137193,1712839838846,-601.61804631,0.00035614,4]
[322137194,1712839838857,-542.30006733,0.00035614,2]
[322137198,1712839838868,-154.90705577,0.00035614,4]
[322137201,1712839838878,-737.48730595,0.00035614,4]
[322137205,1712839838889,-154.90705577,0.00035614,7]
[322137209,1712839838901,-1029.02845319,0.00035614,4]
[322137212,1712839838912,-190.34878784,0.00035614,4]
[322137214,1712839838923,-294.21863496,0.00035614,4]
[322137215,1712839838933,-155.84939343,0.00035614,7]
[322137217,1712839838950,-418.12249466,0.00035615,7]
[322137219,1712839838963,-244.17128127,0.00035615,7]
[322137221,1712839838975,-430.24897875,0.00035615,7]
[322137222,1712839838985,-500.0,0.00035615,7]
[322137223,1712839838997,-500.0,0.00035615,7]
[322137224,1712839839011,-177.805699,0.00035615,7]
[322137225,1712839839023,-500.0,0.00035615,7]
[322137226,1712839839034,-256.17200926,0.00035615,7]
[322137227,1712839839045,-500.0,0.00035615,7]
[322137228,1712839839055,-500.0,0.00035615,7]
[322137229,1712839839066,-500.0,0.00035615,7]
[322137230,1712839839076,-500.0,0.00035615,7]
[322137231,1712839839088,-429.84694598,0.00035615,7]
[322137232,1712839839098,-613.26327098,0.00035615,7]
[322137233,1712839839108,-185.4258674,0.00035615,7]
[322137234,1712839839120,-286.65820197,0.00035615,7]
[322137235,1712839839129,-500.0,0.00035615,7]
[322137236,1712839839140,-500.0,0.00035615,7]
[322137237,1712839839149,-500.0,0.00035615,7]
[322137238,1712839839159,-210.02302286,0.00035615,7]
[322137239,1712839839168,-500.0,0.00035615,7]
[322137240,1712839839178,-500.0,0.00035615,7]
[322137241,1712839839192,-500.0,0.00035615,7]
[322137242,1712839839202,-24259.45356402,0.00035616,5]
[322137243,1712839839211,-502.36697488,0.00035616,14]
[322137244,1712839839221,-500.0,0.00035616,14]
[322137245,1712839839230,-190.77139358,0.00035616,14]
[322137246,1712839839240,-500.0,0.00035616,14]
[322137247,1712839839250,-500.0,0.00035616,14]
[322137248,1712839839259,-504.81325797,0.00035616,14]
[322137249,1712839839269,-500.0,0.00035616,14]
[322137250,1712839839278,-500.0,0.00035616,14]
[322137251,1712839839288,-500.0,0.00035616,14]
[322137252,1712839839297,-500.0,0.00035616,14]
[322137253,1712839839307,-500.0,0.00035616,14]
[322137254,1712839839316,-500.0,0.00035616,14]
[322137255,1712839839326,-501.55902656,0.00035616,14]
[322137256,1712839839337,-500.0,0.00035616,14]
[322137257,1712839839347,-2859.45,0.00035616,2]
[322137258,1712839839356,-500.0,0.00035616,14]
[322137259,1712839839366,-500.0,0.00035616,14]
[322137260,1712839839377,-506.48095644,0.00035616,14]
[322137261,1712839839387,-500.0,0.00035616,14]
[322137262,1712839839396,-624.59447616,0.00035616,14]
[322137263,1712839839406,-500.0,0.00035616,14]
[322137264,1712839839416,-500.0,0.00035616,14]
[322137265,1712839839425,-500.0,0.00035616,14]
[322137266,1712839839440,-388.84734539,0.00035616,14]
[322137267,1712839839449,-500.0,0.00035616,14]
[322137268,1712839839459,-500.0,0.00035616,14]
[322137269,1712839839468,-501.26145236,0.00035616,14]
[322137270,1712839839478,-500.0,0.00035616,14]
[322137271,1712839839488,-400.27476091,0.00035616,14]
[322137272,1712839839497,-300.0,0.00035616,7]
[322137273,1712839839507,-500.0,0.00035616,14]
[322137274,1712839839517,-508.13036006,0.00035616,14]
[322137275,1712839839526,-500.0,0.00035616,14]
[322137276,1712839839538,-500.0,0.00035616,14]
[322137277,1712839839547,-433.94843853,0.00035616,14]
[322137278,1712839839556,-500.0,0.00035616,14]
[322137279,1712839839566,-500.0,0.00035616,14]
[322137280,1712839839575,-157.51388772,0.00035616,14]
[322137281,1712839839584,-500.0,0.00035616,14]
[322137282,1712839839594,-500.0,0.00035616,14]
[322137283,1712839839603,-364.7349128,0.00035616,14]
[322137284,1712839839612,-501.9470241,0.00035616,14]
[322137285,1712839839622,-500.0,0.00035616,14]
[322137286,1712839839632,-500.0,0.00035616,14]
[322137287,1712839839641,-500.0,0.00035616,14]
[322137288,1712839839651,-500.0,0.00035616,14]
[322137289,1712839839660,-500.0,0.00035616,14]
[322137290,1712839839669,-383.19170823,0.00035616,14]
[322137291,1712839839678,-501.48424817,0.00035616,14]
[322137292,1712839839689,-500.0,0.00035616,14]
[322137293,1712839839698,-500.0,0.00035616,14]
[322137294,1712839839707,-501.52663676,0.00035616,7]
[322137295,1712839839716,-501.36310543,0.00035616,14]
[322137296,1712839839726,-500.0,0.00035616,14]
[322137297,1712839839735,-500.0,0.00035616,14]
[322137298,1712839839744,-500.0,0.00035616,14]
[322137299,1712839839753,-500.0,0.00035616,14]
[322137300,1712839839767,-500.0,0.00035616,14]
[322137301,1712839839777,-630.05432951,0.00035616,14]
[322137302,1712839839786,-502.27032178,0.00035616,14]
[322137303,1712839839795,-503.61968857,0.00035616,14]
[322137304,1712839839807,-500.0,0.00035616,14]
[322137305,1712839839816,-502.49390456,0.00035616,14]
[322137306,1712839839827,-500.54934295,0.00035616,14]
[322137307,1712839839837,-500.0,0.00035616,14]
[322137308,1712839839847,-500.0,0.00035616,14]
[322137309,1712839839859,-500.0,0.00035616,14]
[322137310,1712839839870,-500.0,0.00035616,14]
[322137311,1712839839879,-503.26460844,0.00035616,14]
[322137312,1712839839891,-360.6917078,0.00035616,14]
[322137313,1712839839901,-500.0,0.00035616,14]
[322137314,1712839839911,-500.0,0.00035616,14]
[322137315,1712839839920,-500.0,0.00035616,14]
[322137316,1712839839931,-500.0,0.00035616,14]
[322137317,1712839839942,-500.0,0.00035616,14]
[322137318,1712839839952,-500.0,0.00035616,14]
[322137319,1712839839961,-500.0,0.00035616,14]
[322137320,1712839839970,-504.64366399,0.00035616,14]
[322137321,1712839839979,-500.0,0.00035616,14]
[322137322,1712839839989,-500.0,0.00035616,14]
[322137323,1712839839998,-500.0,0.00035616,14]
[322137324,1712839840008,-501.59102706,0.00035616,14]
[322137325,1712839840017,-500.0,0.00035616,14]
[322137326,1712839840027,-373.56278427,0.00035616,14]
[322137327,1712839840037,-500.0,0.00035616,14]
[322137328,1712839840047,-506.53043246,0.00035616,14]
[322137329,1712839840056,-536.65298052,0.00035616,2]
[322137330,1712839840065,-500.0,0.00035616,14]
[322137331,1712839840075,-488.2404238,0.00035616,14]
[322137332,1712839840084,-502.51258515,0.00035616,14]
[322137333,1712839840093,-500.0,0.00035616,14]
[322137334,1712839840102,-313.90260234,0.00035616,14]
[322137335,1712839840112,-500.0,0.00035616,14]
[322137336,1712839840121,-579.61980539,0.00035616,14]
[322137337,1712839840130,-576.88551482,0.00035616,14]
[322137338,1712839840140,-500.0,0.00035616,14]
[322137339,1712839840149,-501.49580564,0.00035616,14]
[322137340,1712839840158,-500.0,0.00035616,14]
[322137341,1712839840168,-500.0,0.00035616,14]
[322137342,1712839840177,-502.34280046,0.00035616,14]
[322137343,1712839840188,-500.0,0.00035616,14]
[322137344,1712839840199,-500.0,0.00035616,14]
[322137345,1712839840209,-500.0,0.00035616,14]
[322137346,1712839840218,-534.39430483,0.00035616,14]
[322137347,1712839840228,-500.0,0.00035616,14]
[322137349,1712839840240,-502.15196958,0.00035616,14]
[322137351,1712839840249,-505.6880392,0.00035616,14]
[322137352,1712839840258,-500.0,0.00035616,14]
[322137353,1712839840268,-509.44168152,0.00035616,14]
[322137354,1712839840277,-500.0,0.00035616,14]
[322137355,1712839840287,-500.0,0.00035616,14]
[322137356,1712839840296,-500.0,0.00035616,14]
[322137358,1712839840306,-500.0,0.00035616,14]
[322137360,1712839840315,-500.0,0.00035616,14]
[322137362,1712839840325,-500.0,0.00035616,14]
[322137364,1712839840334,-500.0,0.00035616,14]
[322137365,1712839840343,-500.0,0.00035616,14]
[322137367,1712839840353,-506.23244752,0.00035616,14]
[322137369,1712839840362,-505.53728322,0.00035616,14]
[322137371,1712839840371,-500.0,0.00035616,14]
[322137372,1712839840380,-500.0,0.00035616,14]
[322137373,1712839840389,-502.47816926,0.00035616,14]
[322137375,1712839840399,-500.88304054,0.00035616,14]
[322137377,1712839840407,-502.08093975,0.00035616,14]
[322137378,1712839840416,-500.0,0.00035616,14]
[322137380,1712839840425,-505.1121777,0.00035616,14]
[322137381,1712839840435,-500.0,0.00035616,14]
[322137382,1712839840447,-502.63786825,0.00035616,14]
[322137384,1712839840456,-500.0,0.00035616,14]
[322137386,1712839840465,-500.0,0.00035616,14]
[322137387,1712839840475,-500.0,0.00035616,14]
[322137389,1712839840484,-500.0,0.00035616,14]
[322137391,1712839840493,-501.00250375,0.00035616,14]
[322137392,1712839840504,-500.0,0.00035616,14]
[322137393,1712839840513,-500.0,0.00035616,14]
[322137394,1712839840522,-500.0,0.00035616,14]
[322137395,1712839840533,-500.0,0.00035616,14]
[322137396,1712839840543,-500.0,0.00035616,14]
[322137397,1712839840554,-500.0,0.00035616,14]
[322137398,1712839840564,-500.0,0.00035616,14]
[322137399,1712839840574,-500.0,0.00035616,14]
[322137400,1712839840583,-500.0,0.00035616,14]
[322137401,1712839840593,-500.0,0.00035616,14]
[322137402,1712839840602,-500.0,0.00035616,14]
[322137403,1712839840612,-500.0,0.00035616,14]
[322137404,1712839840622,-500.0,0.00035616,14]
[322137405,1712839840632,-500.0,0.00035616,14]
[322137406,1712839840641,-500.0,0.00035616,14]
[322137407,1712839840651,-500.0,0.00035616,14]
[322137408,1712839840662,-500.0,0.00035616,14]
[322137409,1712839840672,-500.0,0.00035616,14]
[322137410,1712839840682,-500.0,0.00035616,14]
[322137411,1712839840694,-589.79983195,0.00035616,14]
[322137412,1712839840703,-500.0,0.00035616,14]
[322137413,1712839840712,-501.12710177,0.00035616,14]
[322137414,1712839840722,-503.41655795,0.00035616,14]
[322137415,1712839840731,-502.49650734,0.00035616,14]
[322137416,1712839840740,-465.52476785,0.00035616,14]
[322137417,1712839840749,-500.0,0.00035616,14]
[322137418,1712839840759,-505.14909184,0.00035616,14]
[322137419,1712839840768,-500.0,0.00035616,14]
[322137420,1712839840780,-151.0,0.00035616,2]
[322137421,1712839840789,-151.0,0.00035616,14]
[322137422,1712839840798,-151.0,0.00035616,2]
[322137423,1712839840807,-151.0,0.00035616,2]
[322137424,1712839840816,-151.0,0.00035616,2]
[322137425,1712839840894,-500.0,0.00035616,14]
[322137426,1712839840913,-151.0,0.00035616,2]
[322137427,1712839840923,-500.0,0.00035616,14]
[322137428,1712839840933,-151.0,0.00035616,2]
[322137429,1712839840945,-554.81131479,0.00035616,14]
[322137430,1712839840954,-293.339634,0.00035616,2]
[322137431,1712839840963,-500.0,0.00035616,14]
[322137432,1712839840974,-500.44092489,0.00035616,14]
[322137433,1712839840983,-500.0,0.00035616,14]
[322137434,1712839840993,-500.0,0.00035616,14]
[322137435,1712839841002,-500.0,0.00035616,14]
[322137436,1712839841011,-500.0,0.00035616,14]
[322137437,1712839841021,-500.0,0.00035616,14]
[322137438,1712839841031,-647.55943739,0.00035616,14]
[322137439,1712839841040,-500.0,0.00035616,14]
[322137440,1712839841049,-223.23928149,0.00035616,14]
[322137441,1712839841059,-500.0,0.00035616,14]
[322137442,1712839841069,-501.60117201,0.00035616,14]
[322137443,1712839841078,-500.0,0.00035616,14]
[322137444,1712839841088,-241.77469085,0.00035616,14]
[322137445,1712839841098,-163.70188,0.00035616,2]
[322137446,1712839841108,-163.70188,0.00035616,2]
[322137447,1712839841117,-500.0,0.00035616,14]
[322137448,1712839841127,-163.70188,0.00035616,2]
[322137449,1712839841137,-163.70188,0.00035616,2]
[322137450,1712839841146,-502.05175388,0.00035616,14]
[322137451,1712839841155,-163.70188,0.00035616,2]
[322137452,1712839841165,-179.99082336,0.00035616,14]
[322137453,1712839841174,-163.70188,0.00035616,2]
[322137454,1712839841184,-163.70188,0.00035616,2]
[322137455,1712839841197,-163.70188,0.00035616,2]
[322137456,1712839841206,-163.70188,0.00035616,2]
[322137457,1712839841215,-163.70188,0.00035616,2]
[322137458,1712839841224,-500.0,0.00035616,14]
[322137459,1712839841234,-163.70188,0.00035616,2]
[322137460,1712839841242,-500.0,0.00035616,14]
[322137461,1712839841252,-163.70188,0.00035616,2]
[322137462,1712839841261,-163.70188,0.00035616,2]
[322137463,1712839841271,-163.70188,0.00035616,2]
[322137464,1712839841280,-500.0,0.00035616,14]
[322137465,1712839841289,-500.0,0.00035616,14]
[322137466,1712839841298,-163.70188,0.00035616,2]
[322137467,1712839841307,-163.70188,0.00035616,2]
[322137468,1712839841317,-163.70188,0.00035616,2]
[322137469,1712839841326,-163.70188,0.00035616,2]
[322137470,1712839841336,-500.0,0.00035616,14]
[322137471,1712839841345,-163.70188,0.00035616,2]
[322137472,1712839841355,-163.701871,0.00035616,2]
[322137473,1712839841364,-500.0,0.00035616,14]
[322137474,1712839841374,-500.0,0.00035616,14]
[322137475,1712839841383,-500.0,0.00035616,14]
[322137476,1712839841393,-500.0,0.00035616,14]
[322137477,1712839841402,-500.0,0.00035616,14]
[322137478,1712839841411,-500.0,0.00035616,14]
[322137479,1712839841421,-500.0,0.00035616,14]
[322137480,1712839841430,-500.0,0.00035616,14]
[322137481,1712839841439,-500.0,0.00035616,14]
[322137482,1712839841448,-402.424068,0.00035616,2]
[322137483,1712839841457,-609.96609747,0.00035616,14]
[322137484,1712839841466,-402.424068,0.00035616,2]
[322137485,1712839841476,-402.424068,0.00035616,2]
[322137486,1712839841485,-402.424068,0.00035616,2]
[322137487,1712839841494,-402.424068,0.00035616,2]
[322137488,1712839841503,-402.424068,0.00035616,2]
[322137489,1712839841512,-402.424068,0.00035616,2]
[322137490,1712839841522,-500.0,0.00035616,14]
[322137491,1712839841531,-402.424068,0.00035616,2]
[322137492,1712839841540,-402.424068,0.00035616,2]
[322137493,1712839841549,-402.424068,0.00035616,2]
[322137494,1712839841558,-402.424068,0.00035616,2]
[322137495,1712839841567,-500.0,0.00035616,14]
[322137496,1712839841576,-402.424068,0.00035616,2]
[322137497,1712839841586,-402.424068,0.00035616,2]
[322137498,1712839841595,-402.424068,0.00035616,2]
[322137499,1712839841604,-402.424068,0.00035616,2]
[322137500,1712839841613,-500.0,0.00035616,14]
[322137501,1712839841623,-402.424068,0.00035616,2]
[322137502,1712839841633,-402.424068,0.00035616,2]
[322137503,1712839841642,-402.424068,0.00035616,2]
[322137504,1712839841652,-402.424068,0.00035616,2]
[322137505,1712839841661,-500.0,0.00035616,14]
[322137506,1712839841670,-402.424058,0.00035616,2]
[322137507,1712839841680,-509.31106479,0.00035616,7]
[322137508,1712839841690,-500.0,0.00035616,14]
[322137509,1712839841699,-500.0,0.00035616,14]
[322137510,1712839841708,-500.0,0.00035616,14]
[322137511,1712839841717,-500.0,0.00035616,14]